Cogmind - Beta 9 @@@ ROGUE MODE // 2019.10.26 @ 17:43:50 Player: Xii Result: Destroyed by as-54874 with Assembled F-torch Performance ------------- Evolutions (0) 0 Regions Visited (2) 400 Robots Destroyed (0) 0 Value Destroyed (0) 0 Prototype IDs (3) 60 Alien Tech Used (0) 0 Bonus (0) 0 TOTAL SCORE: 460 Bonus ------- None Cogmind --------- Core Integrity 0/250 Matter 226/300 Energy 71/100 System Corruption 4% Temperature Cool (21) Location -10/Mines Parts ------- Power (1) Propulsion (2) Flight Unit Utility (2) Signal Interpreter Weapon (2) Light Assault Rifle Inventory (4) Light Ion Engine Seismic Analyzer Peak State ------------ Power Light Ion Engine Propulsion Light Treads Aluminum Leg Utility Small Storage Unit Weapon EM Pulse Gun Assault Rifle Inventory Ion Engine Light Treads Aluminum Leg Wheel Wheel Assault Rifle [Rating: 6] Favorites ----------- Power Light Ion Engine Engine Light Ion Engine Propulsion Light Treads Treads Light Treads Leg Aluminum Leg Flight Unit Flight Unit Utility Structural Scanner Device Structural Scanner Storage Small Storage Unit Processor Signal Interpreter Protection Propulsion Shielding Weapon Assault Rifle Energy Gun EM Pulse Gun Ballistic Gun Assault Rifle Build | -11 -10 -10 ------- Run | Scr Mat Min Slots Evolved . | . . . Power . | . . . Propulsion . | . . . Utility . | . . . Weapon . | . . . Parts Attached 11 | 2 4 5 Power . | . . . Engine . | . . . Core . | . . . Reactor . | . . . Propulsion 6 | 2 1 3 Treads 2 | 2 . . Leg 2 | . 1 1 Wheel . | . . . Hover . | . . . Flight 2 | . . 2 Utility 3 | . 3 . Device 1 | . 1 . Storage . | . . . Processor 1 | . 1 . Hackware . | . . . Protection 1 | . 1 . Artifact . | . . . Weapon 2 | . . 2 Energy Gun . | . . . Energy Cannon . | . . . Ballistic Gun 2 | . . 2 Ballistic Cannon . | . . . Launcher . | . . . Special Weapon . | . . . Impact Weapon . | . . . Slashing Weapon . | . . . Piercing Weapon . | . . . Special Melee Weapon . | . . . Unidentified Prototypes . | . . . Parts Lost 6 | . 1 5 Power . | . . . Propulsion 4 | . 1 3 Utility . | . . . Weapon 2 | . . 2 Highest Loss Streak 4 | . 1 4 Average Slot Usage (%) 62 | . 63 61 Treads 14 | . 26 2 Leg 8 | . 1 16 Device 12 | . 11 14 Processor 11 | . 8 14 Ballistic Gun 14 | . 14 14 Naked Turns . | . . . Heaviest Build 3 | 2 3 3 Greatest Support 4 | 3 3 4 Greatest Overweight (x) . | . . . Average Overweight (x) . | . . . Largest Inventory Capacity 6 | 6 4 4 Average Capacity 4 | 5 4 4 Most Carried 6 | 6 4 3 Average Carried 3 | 5 3 2 Final Capacity 4 | . . 4 Final Carried 2 | . . 2 Class Distribution -------------------- 100% | Mutant Dominant Class ---------------- Mutant | -10/Materials Mutant | -10/Mines Resources | -11 -10 -10 ----------- Run | Scr Mat Min Matter Collected 206 | 196 . 10 Remotely . | . . . Salvage Created . | . . . Parts . | . . . Haulers Intercepted . | . . . Recyclers Shooed . | . . . Parts Field Recycled . | . . . Retrieved Matter . | . . . Parts Self-Destructed . | . . . Prevented . | . . . Kills | -11 -10 -10 ------- Run | Scr Mat Min Combat Hostiles Destroyed . | . . . Classes Destroyed . | . . . Best Kill Streak . | . . . Combat Bots Only . | . . . Max Kills in Single Turn . | . . . Gunslinging . | . . . Exploded . | . . . Melee . | . . . Uniques/NPCs Destroyed . | . . . Combat | -11 -10 -10 -------- Run | Scr Mat Min Damage Taken 990 | . 413 577 Core 250 | . 59 191 Absorbed by Shields . | . . . Core Remaining (%) 100 | 100 . . Volleys Fired . | . . . Largest . | . . . Hottest . | . . . Shots Fired . | . . . Gun . | . . . Cannon . | . . . Launcher . | . . . Special . | . . . Kinetic . | . . . Thermal . | . . . Explosive . | . . . Electromagnetic . | . . . Robot Hit Streak . | . . . Robot Miss Streak . | . . . Penetration Max . | . . . Secondary Targets . | . . . Shots Hit Robots . | . . . Core Hits . | . . . Critical Hits . | . . . Critical Kills . | . . . Critical Parts Destroyed . | . . . Melee Attacks . | . . . Impact . | . . . Slashing . | . . . Piercing . | . . . Sneak Attacks . | . . . Combat Hostiles . | . . . Follow-up Attacks . | . . . Damage Inflicted . | . . . Guns . | . . . Cannons . | . . . Explosions . | . . . Melee . | . . . Ramming . | . . . Kinetic . | . . . Thermal . | . . . Explosive . | . . . Electromagnetic . | . . . Impact . | . . . Slashing . | . . . Piercing . | . . . Highest Corruption 4 | . . 4 Average Corruption 4 | . . 4 Corruption Purged . | . . . Effects 1 | . . 1 Parts Rejected 1 | . . 1 Overload Shots . | . . . Overflow Damage . | . . . Projectiles . | . . . Explosions . | . . . Melee . | . . . Knockbacks . | . . . Impact . | . . . Kinetic . | . . . Secondary . | . . . Self-Inflicted Damage . | . . . Shots . | . . . Rammed . | . . . Targets Rammed . | . . . Kicked . | . . . Crushed . | . . . Highest Temperature . | . . . Average Temperature . | . . . Received Heat Transfer 192 | . 36 156 Siege Activations . | . . . Robots Corrupted . | . . . Combat Hostiles . | . . . Parts Fried . | . . . Impact Corruptions . | . . . Robots Melted . | . . . Combat Hostiles . | . . . Parts Melted . | . . . Heat Transferred . | . . . Parts Sabotaged . | . . . Parts Stolen . | . . . Parts Stripped . | . . . Power Chain Reactions . | . . . Missiles Intercepted . | . . . Alert | -11 -10 -10 ------- Run | Scr Mat Min Peak Influence 63 | . 63 35 Average Influence 27 | . 41 14 Maximum Alert Level . | . . . Low Security (%) 100 | . . . Level 1 . | . . . Level 2 . | . . . Level 3 . | . . . Level 4 . | . . . Level 5 . | . . . High Security . | . . . Max Security . | . . . Squads Dispatched . | . . . Investigation . | . . . Extermination . | . . . Reinforcement . | . . . Assault . | . . . Garrison . | . . . Intercept . | . . . Construction Impeded . | . . . Haulers Reinforced . | . . . Stealth | -11 -10 -10 --------- Run | Scr Mat Min Distress Signals 2 | . 1 1 Communications Jammed . | . . . Distress Signals . | . . . Times Spotted 29 | . 13 16 Peak Tracking Total 14 | . 7 14 Tactical Retreats 5 | . 2 3 Traps | -11 -10 -10 ------- Run | Scr Mat Min Traps Triggered . | . . . Indirectly . | . . . Trap Hack Attempts . | . . . Triggered . | . . . Disarmed . | . . . Reprogrammed . | . . . Reused . | . . . Traps Extracted . | . . . Installed . | . . . Triggered . | . . . Machines | -11 -10 -10 ---------- Run | Scr Mat Min Machines Disabled . | . . . Max in Single Turn . | . . . Machines Sabotaged . | . . . Garrisons Compromised . | . . . Overloaded Fab Kills . | . . . Fab Network Shutdowns . | . . . Hacking | -11 -10 -10 --------- Run | Scr Mat Min Machines Accessed 4 | . 3 1 Terminals 3 | . 2 1 Fabricators . | . . . Repair Stations . | . . . Recycling Units 1 | . 1 . Scanalyzers . | . . . Garrison Access . | . . . Total Hacks 17 | . 14 3 Successful 12 | . 11 1 Failed 5 | . 3 2 Catastrophic . | . . . Database Lockouts . | . . . Manual 6 | . 6 . Terminals 14 | . 11 3 Fabricators . | . . . Repair Stations . | . . . Recycling Units 3 | . 3 . Scanalyzers . | . . . Garrison Access . | . . . Terminal Hacks 7 | . 6 1 Prototype ID Bank 2 | . 2 . Branch Access Points 1 | . 1 . Emergency Access Points 1 | . 1 . Terminal Index 1 | . 1 . Registered Components 1 | . 1 . Zone Layout 1 | . . 1 Fabricator Hacks . | . . . Repair Station Hacks . | . . . Recycling Unit Hacks 2 | . 2 . Report Inventory 1 | . 1 . Retrieve Components 1 | . 1 . Scanalyzer . | . . . Garrison Access Hacks . | . . . Unauthorized Hacks 7 | . 7 . Terminals 3 | . 3 . Track 1 | . 1 . Assimilate 1 | . 1 . Botnet 1 | . 1 . Fabricators . | . . . Repair Stations . | . . . Recycling Units . | . . . Scanalyzers . | . . . Garrison Access . | . . . Data Cores Recovered . | . . . Used . | . . . Hacking Detections 4 | . 3 1 Full Trace Events . | . . . Feedback Events . | . . . Feedback Blocked . | . . . Robot Schematics Acquired . | . . . Robots Built . | . . . Matter . | . . . Time . | . . . Total Robot Build Rating . | . . . Part Schematics Acquired . | . . . Parts Built . | . . . Matter . | . . . Time . | . . . Total Part Build Rating . | . . . Parts Repaired . | . . . Time . | . . . Parts Recycled . | . . . Recycled Matter . | . . . Retrieved Matter . | . . . Retrieved Components 2 | . 2 . Parts Scanalyzed . | . . . Part Schematics Acquired . | . . . Parts Damaged . | . . . Bothacking | -11 -10 -10 ------------ Run | Scr Mat Min Used RIF Installer . | . . . Robots Hacked . | . . . Non-combat . | . . . Combat . | . . . Robot Hacks Applied . | . . . Relay Couplers Released . | . . . Robots Rewired . | . . . Allies Hacked . | . . . Hacks Repelled . | . . . Allies | -11 -10 -10 -------- Run | Scr Mat Min Total Allies 1 | . 1 . Largest Group 1 | . 1 . Highest-Rated Group 10 | . 10 . Highest-Rated Ally 10 | . 10 . Total Orders 1 | . 1 . GOTO 1 | . 1 . Ally Attacks . | . . . Total Damage . | . . . Kills . | . . . Allies Corrupted . | . . . Allies Melted . | . . . Intel | -11 -10 -10 ------- Run | Scr Mat Min Robot Analysis Total . | . . . Derelict Logs Recovered 1 | . . 1 Drone Launches . | . . . Drone Recoveries . | . . . Exploration | -11 -10 -10 ------------- Run | Scr Mat Min Turns Passed 248 | 7 119 122 Spaces Moved 402 | 1 209 192 Core 394 | 1 209 184 Treads . | . . . Legs . | . . . Wheels . | . . . Hover . | . . . Flight 8 | . . 8 Fastest Speed 40 | 50 50 40 Average Speed 49 | 50 50 49 Slowest Speed 50 | 50 50 50 Overloaded Moves . | . . . Propulsion Burnouts . | . . . Robots Hopped 1 | . . 1 Cave-ins Triggered . | . . . Exploration Rate (%) 36 | 1 58 51 Regions Visited 2 Branch Regions 1 Pre-discovered Areas . | . . . Known Exits Taken 1 | . 1 . Unknown Exits Taken 1 | 1 . . Scrap Searched . | . . . Spaces Dug . | . . . Terrain Destroyed . | . . . Melee . | . . . Projectile . | . . . AOE . | . . . Actions | -11 -10 -10 --------- Run | Scr Mat Min Total 447 | 8 221 218 Wait 26 | . 8 18 Move 398 | . 208 190 Hop 1 | . . 1 Pick Up 3 | . . 3 Fast Attach 3 | . 3 . Attach 6 | . 1 5 Detach 2 | 1 . 1 Swap 2 | 2 . . Drop 6 | 5 1 . Fire . | . . . Melee . | . . . Ram . | . . . Kick . | . . . Crush . | . . . Escape Stasis . | . . . Rewire . | . . . Trap . | . . . Miscellaneous . | . . . Route ------- -11/Scrapyard -10/Materials (discovered 4 exits: *Mat x3 / *Min) -10/Mines History --------- Turn | Location | Event 8 | -11/Scrapyard | Discovered new exit (range 0) 8 | -11/Scrapyard | Entered Materials 11 | -10/Materials | Identified exit to Mines 62 | -10/Materials | Discovered new exit (range 16) 75 | -10/Materials | Discovered new exit (range 14) 114 | -10/Materials | Discovered new exit (range 4) 115 | -10/Materials | Identified exit to Materials 127 | -10/Materials | Entered Mines 165 | -10/Mines | Core integrity fell below 50% 192 | -10/Mines | Assembled infested the area 213 | -10/Mines | Lost 4 parts (2n2w) 216 | -10/Mines | Learned location of 1 exit from Materials 247 | -10/Mines | Core integrity fell below 20% 249 | -10/Mines | Destroyed by as-54874 with Assembled F-torch Last Messages --------------- Lgt. Treads destroyed. K-01 Serf collects debris. K-01 Serf cleans the Plasma Injector. Assault Rifle destroyed. K-01 Serf cleans the Plasma Injector. Acquired Lgt. Assault Rifle. Aluminum Leg destroyed. K-01 Serf collects debris. Assault Rifle destroyed. K-01 Serf collects debris. ALERT: Infestation in the mines, dispatching Demolisher response squad. K-01 Serf collects debris. Acquired Flight Unit. Acquired Seismic Analyzer. Acquired derelict log, extracted data. Data stored: Materials exits (x1). Aluminum Leg destroyed. System corrupted by crushing effect (+4). System corrupted: Structural Scanner rejected. Knocked back. Map ----- +----------------------------------------------------+ | ###?????# ###????????????????????????? | | ##???????# ##???????????????????????? | | ##???????# ####????????????????????? | | #??????## #????????????????????? | | ### #??????# #????####????????????? | | ???## #?????# ### #????# ?????????????? | | ????# ##?????# ####?# #????# #?????????????? | | ????# ####????## ##????# #???## #?????????????? | | ????# #?????###??????# ##### =##????????????? | | ## #??????????????# #### #???????? | | ## ###### #??????????????# #???????? | | ?#??????# #??????????????####### #######???????? | | ????????# #########????????????# ##?????????????? | | ????????# #???????????## #??????????????# | | ????????######### #??????????## ##??????????????# | | ????????????????# #???##???### ##???????????????# | | ????????????????# ##### ###%!% #????????????????? | | ?????????###????# ! [= ##????????????????? | | ?????????# ##??# #### % #????????????????## | | ?????????# ##?# ##?## #### #????????????????# | | ?????????# ### ##?##????# ##???????????????# | | ?????????## #??###### ##??????????????# | | ??????????## #?## #?????????###### | | ??????????## ##?# ##????????## | | #????###### ####??# #?????##### | | ###### ##?????# @ ######## ### | | ##??????# """ #?? | | #######??????## a """ #?? | | ####### ###??????????# a######## """ #?? | | ??????# #??????????# !##??????# """ #?? | | ??????### #??????????# a ##???????## ##?? | | ????????# #??????????## #?????????### ##??? | | ????????# #??????????## ##???????????## ##???? | | ????????# #??????????# #?????????????####????? | | #???????# #?????????# #????????????????????? | | ##????### #?????????# #????????????????????? | | ##??##T# ###???????# ##????????????????????? | | #??# #???????# ##?????????????????????? | | #??# """#???????## ###??????????????????????? | | #??# *"""#????????###?????????????????????????? | | #??# """#????????????????????????????????????? | | #??# #????????????????????????????????????? | | ##??########????????????????????????????????????? | | ##???????????????????????????????????????????????? | | ?????????????????????????????????????????????????? | | ?????????????????????????????????????????????????? | | | | | | | | | +----------------------------------------------------+ Best States ------------- Heat Dissipation 25 Energy Generation 5 Energy Capacity 100 Matter Stores 276 Matter Capacity 300 Sight Range 16 Terrain Scan Density 10 Propulsion Shielding 33 Evasion (%) 50 Item Schematics ----------------- None Robot Schematics ------------------ None Fabricated ------------ Nothing Alien Tech Used ----------------- None Achievements -------------- None Challenges ------------ None Game ------ Seed GrenadeSigixGun Manual? 0 Play Time 00:12:34 Cumulative 101.7 hours Start 2019.10.26 @ 17:31:53 End 2019.10.26 @ 17:43:50 Sessions 1 Manual Loads 0 Difficulty Rogue Special Mode None Game No. 39 Rogue 39 Adventurer 0 Explorer 0 Win Type - Total 8 Types 2/0/2/4/0/0/0 Lore% 63 Gallery% 58 Achievement% 51 Wizard Run 0 Options --------- ASCII 0 Keyboard 0 Movement Mouse Keybinds 0 Fullscreen 1 Font 18/SmallcapsGlow Map View 76x50 Tactical HUD 1 Map Filters NONE Filters NONE Steam 0 RUN: 86d8d92e-9a93-4f8c-8532-7246a107a250